[Event "*** Titled Tuesday Blitz"]
[Site "Chess.com"]
[Date "2020.10.20"]
[Round "10"]
[White "oogee"]
[Black "lucachess49"]
[Result "1-0"]
[WhiteElo "2198"]
[BlackElo "2335"]
[TimeControl "180+1"]
[EndTime "11:54:19 PDT"]
[Termination "oogee won by resignation"]

1. d4 {[%clk 0:02:59.4]} 1... Nf6 {[%clk 0:02:59.7]} 2. c4 {[%clk 0:02:56.8]}
2... e6 {[%clk 0:02:59.3]} 3. g3 {[%clk 0:02:55.3]} 3... d5 {[%clk 0:02:58.4]}
4. Nf3 {[%clk 0:02:54.7]} 4... b6 {[%clk 0:02:40.5]} 5. cxd5 {[%clk 0:02:51.6]}
5... exd5 {[%clk 0:02:40.1]} 6. Bg2 {[%clk 0:02:51.1]} 6... Be7 {[%clk
0:02:39.5]} 7. O-O {[%clk 0:02:47.1]} 7... O-O {[%clk 0:02:40]} 8. Nc3 {[%clk
0:02:39.3]} 8... Bf5 {[%clk 0:02:34.9]} 9. Ne5 {[%clk 0:02:32.3]} 9... c6 {[%clk
0:02:34.4]} 10. Qa4 {[%clk 0:02:25.4]} 10... b5 {[%clk 0:02:33.1]} 11. Qb3
{[%clk 0:02:18.7]} 11... Qb6 {[%clk 0:02:22.7]} 12. Rd1 {[%clk 0:02:03.5]} 12...
Nbd7 {[%clk 0:02:04.5]} 13. Nxc6 {[%clk 0:01:49.5]} 13... Qxc6 {[%clk
0:02:02.3]} 14. Nxd5 {[%clk 0:01:48]} 14... Nxd5 {[%clk 0:01:38.3]} 15. Bxd5
{[%clk 0:01:45.2]} 15... Qh6 {[%clk 0:01:38.7]} 16. Bxh6 {[%clk 0:01:44.2]} 1-0

[Event "*** Titled Tuesday Blitz"]
[Site "Chess.com"]
[Date "2020.10.20"]
[Round "10"]
[White "AndrewDGreen"]
[Black "Sacbutt"]
[Result "1-0"]
[WhiteElo "2401"]
[BlackElo "2290"]
[TimeControl "180+1"]
[EndTime "11:54:40 PDT"]
[Termination "AndrewDGreen won by resignation"]

1. d4 {[%clk 0:03:00.9]} 1... Nf6 {[%clk 0:02:58.6]} 2. Nf3 {[%clk 0:03:00.3]}
2... e6 {[%clk 0:02:58]} 3. Bf4 {[%clk 0:02:59.7]} 3... c5 {[%clk 0:02:56]} 4.
e3 {[%clk 0:02:59.3]} 4... Nc6 {[%clk 0:02:56]} 5. Nbd2 {[%clk 0:02:52.9]} 5...
d5 {[%clk 0:02:53.9]} 6. c3 {[%clk 0:02:51.7]} 6... Bd6 {[%clk 0:02:53.2]} 7.
Bg3 {[%clk 0:02:51.3]} 7... O-O {[%clk 0:02:53.1]} 8. Bd3 {[%clk 0:02:50.3]}
8... h6 {[%clk 0:02:47.3]} 9. Ne5 {[%clk 0:02:37.2]} 9... Qe7 {[%clk 0:02:31]}
10. f4 {[%clk 0:02:33.1]} 10... Bd7 {[%clk 0:02:22.9]} 11. O-O {[%clk
0:02:31.6]} 11... Rac8 {[%clk 0:02:19.8]} 12. Bh4 {[%clk 0:02:29.3]} 12... Qd8
{[%clk 0:02:05.2]} 13. Qf3 {[%clk 0:02:14.5]} 13... cxd4 {[%clk 0:01:59.6]} 14.
exd4 {[%clk 0:02:11.3]} 14... Be7 {[%clk 0:01:57.2]} 15. Rae1 {[%clk 0:02:08]}
15... Ne4 {[%clk 0:01:46.4]} 16. Nxe4 {[%clk 0:01:35.1]} 16... Bf6 {[%clk
0:01:43.5]} 17. Nxf6+ {[%clk 0:01:32.4]} 1-0

[Event "*** Titled Tuesday Blitz"]
[Site "Chess.com"]
[Date "2020.10.20"]
[Round "10"]
[White "Guenplen"]
[Black "sotochess"]
[Result "1-0"]
[WhiteElo "2845"]
[BlackElo "2642"]
[TimeControl "180+1"]
[EndTime "11:54:48 PDT"]
[Termination "Guenplen won on time"]

1. d4 {[%clk 0:03:00.9]} 1... Nf6 {[%clk 0:00:28.8]} 2. Bf4 {[%clk 0:02:55.6]}
2... g6 {[%clk 0:00:21.1]} 3. e3 {[%clk 0:02:55.8]} 3... Bg7 {[%clk 0:00:21]} 4.
Nf3 {[%clk 0:02:56.1]} 4... O-O {[%clk 0:00:20.7]} 5. h3 {[%clk 0:02:56.7]} 5...
d6 {[%clk 0:00:19.4]} 6. Be2 {[%clk 0:02:55.2]} 6... b6 {[%clk 0:00:19.5]} 7. c3
{[%clk 0:02:55.3]} 7... Bb7 {[%clk 0:00:19.5]} 8. O-O {[%clk 0:02:55.4]} 8...
Nbd7 {[%clk 0:00:19.7]} 9. Bh2 {[%clk 0:02:55.6]} 9... Re8 {[%clk 0:00:17.8]}
10. a4 {[%clk 0:02:55]} 10... a6 {[%clk 0:00:17.6]} 11. Na3 {[%clk 0:02:48.9]}
11... e5 {[%clk 0:00:16.5]} 12. Nc4 {[%clk 0:02:49.1]} 12... exd4 {[%clk
0:00:13.6]} 13. cxd4 {[%clk 0:02:48.9]} 13... Nd5 {[%clk 0:00:06.7]} 14. Rc1
{[%clk 0:02:48.8]} 1-0

[Event "*** Titled Tuesday Blitz"]
[Site "Chess.com"]
[Date "2020.10.20"]
[Round "10"]
[White "Tenamu"]
[Black "Natalya_Buksa"]
[Result "0-1"]
[WhiteElo "2420"]
[BlackElo "2560"]
[TimeControl "180+1"]
[EndTime "11:54:53 PDT"]
[Termination "Natalya_Buksa won by resignation"]

1. d4 {[%clk 0:02:59]} 1... d5 {[%clk 0:03:00.3]} 2. Nc3 {[%clk 0:02:57.8]} 2...
e6 {[%clk 0:03:00.7]} 3. e4 {[%clk 0:02:56.6]} 3... dxe4 {[%clk 0:02:59.5]} 4.
Nxe4 {[%clk 0:02:56.4]} 4... Nf6 {[%clk 0:03:00.1]} 5. Nxf6+ {[%clk 0:02:56.3]}
5... gxf6 {[%clk 0:02:57.5]} 6. Nf3 {[%clk 0:02:55.9]} 6... Nc6 {[%clk
0:02:57.8]} 7. Bd3 {[%clk 0:02:55.3]} 7... f5 {[%clk 0:02:56.8]} 8. b3 {[%clk
0:02:54.8]} 8... Bg7 {[%clk 0:02:56.9]} 9. Bb2 {[%clk 0:02:55]} 9... O-O {[%clk
0:02:53.2]} 10. c3 {[%clk 0:02:49.2]} 10... b6 {[%clk 0:02:52.1]} 11. Qd2 {[%clk
0:02:48.8]} 11... Bb7 {[%clk 0:02:51.5]} 12. O-O-O {[%clk 0:02:48.7]} 12... a5
{[%clk 0:02:49.3]} 13. g4 {[%clk 0:02:46]} 13... fxg4 {[%clk 0:02:47.7]} 14. Ng5
{[%clk 0:02:44.2]} 14... h6 {[%clk 0:02:47.8]} 15. Ne4 {[%clk 0:02:43]} 15... a4
{[%clk 0:02:46.2]} 16. Rhg1 {[%clk 0:02:40.2]} 16... f5 {[%clk 0:02:46.6]} 17.
Ng3 {[%clk 0:02:40.4]} 17... axb3 {[%clk 0:02:46.2]} 18. axb3 {[%clk 0:02:40.2]}
18... Na5 {[%clk 0:02:45.8]} 19. Kc2 {[%clk 0:02:38.8]} 19... c5 {[%clk
0:02:39.1]} 20. Nh5 {[%clk 0:02:31.2]} 20... Qc7 {[%clk 0:02:34.5]} 21. Nxg7
{[%clk 0:02:29.9]} 21... Qxg7 {[%clk 0:02:34.9]} 22. Rde1 {[%clk 0:02:22.6]}
22... cxd4 {[%clk 0:02:26.7]} 23. c4 {[%clk 0:02:22]} 23... e5 {[%clk
0:02:21.4]} 24. Qb4 {[%clk 0:02:16]} 24... Qf6 {[%clk 0:02:11.7]} 25. f4 {[%clk
0:02:13.7]} 25... e4 {[%clk 0:02:10.7]} 26. Bf1 {[%clk 0:02:12.2]} 26... Rfc8
{[%clk 0:02:04.1]} 27. Kb1 {[%clk 0:02:11.1]} 27... e3 {[%clk 0:01:55.8]} 28.
Bd3 {[%clk 0:02:09.8]} 28... Be4 {[%clk 0:01:55.9]} 29. Kc2 {[%clk 0:02:09.7]}
29... Bxd3+ {[%clk 0:01:55.3]} 30. Kxd3 {[%clk 0:02:09.7]} 30... Rd8 {[%clk
0:01:51.7]} 31. Rg3 {[%clk 0:02:03.4]} 31... Nb7 {[%clk 0:01:51.3]} 32. h3
{[%clk 0:01:58.2]} 32... Nc5+ {[%clk 0:01:51.5]} 33. Ke2 {[%clk 0:01:56.9]}
33... d3+ {[%clk 0:01:51]} 34. Kf1 {[%clk 0:01:57.2]} 34... Qxb2 {[%clk
0:01:49.7]} 35. Rgxe3 {[%clk 0:01:57.4]} 35... Ra2 {[%clk 0:01:46.6]} 36. R3e2
{[%clk 0:01:54.7]} 36... dxe2+ {[%clk 0:01:45.9]} 0-1

[Event "*** Titled Tuesday Blitz"]
[Site "Chess.com"]
[Date "2020.10.20"]
[Round "10"]
[White "SophieNikoladze"]
[Black "bazar-wokzal"]
[Result "0-1"]
[WhiteElo "2285"]
[BlackElo "2494"]
[TimeControl "180+1"]
[EndTime "11:55:07 PDT"]
[Termination "bazar-wokzal won by resignation"]

1. d4 {[%clk 0:03:00.9]} 1... Nf6 {[%clk 0:02:59.6]} 2. Nf3 {[%clk 0:03:01]}
2... e6 {[%clk 0:02:59.6]} 3. e3 {[%clk 0:02:59.5]} 3... c5 {[%clk 0:02:59.5]}
4. b3 {[%clk 0:02:58.8]} 4... b6 {[%clk 0:02:59.7]} 5. Bb2 {[%clk 0:02:58.4]}
5... Bb7 {[%clk 0:03:00.3]} 6. Bd3 {[%clk 0:02:58.8]} 6... Be7 {[%clk
0:03:00.6]} 7. c4 {[%clk 0:02:58.9]} 7... d6 {[%clk 0:03:01.3]} 8. O-O {[%clk
0:02:59]} 8... Nbd7 {[%clk 0:03:01.6]} 9. Nc3 {[%clk 0:02:59.4]} 9... a6 {[%clk
0:03:00.3]} 10. Bc2 {[%clk 0:02:59.3]} 10... Qc7 {[%clk 0:02:59.4]} 11. d5
{[%clk 0:02:59.3]} 11... exd5 {[%clk 0:02:51.9]} 12. cxd5 {[%clk 0:02:57.5]}
12... b5 {[%clk 0:02:52.2]} 13. e4 {[%clk 0:02:57.3]} 13... O-O {[%clk 0:02:50]}
14. Re1 {[%clk 0:02:56.3]} 14... Rfe8 {[%clk 0:02:48.5]} 15. a4 {[%clk
0:02:55.5]} 15... b4 {[%clk 0:02:43.1]} 16. Nb1 {[%clk 0:02:55.4]} 16... c4
{[%clk 0:02:38.4]} 17. bxc4 {[%clk 0:02:54.7]} 17... Qxc4 {[%clk 0:02:38.3]} 18.
Bb3 {[%clk 0:02:55]} 18... Qc7 {[%clk 0:02:36.1]} 19. Nbd2 {[%clk 0:02:55.5]}
19... Nc5 {[%clk 0:02:34.5]} 20. Rc1 {[%clk 0:02:50.9]} 20... Qd8 {[%clk
0:02:28.6]} 21. Bc4 {[%clk 0:02:42.2]} 21... Nfd7 {[%clk 0:02:15.7]} 22. Nb3
{[%clk 0:02:31.5]} 22... Nxa4 {[%clk 0:02:11.4]} 23. Bd4 {[%clk 0:02:26.5]}
23... Bf6 {[%clk 0:02:06.9]} 24. Bxf6 {[%clk 0:02:18.3]} 24... Nxf6 {[%clk
0:02:04.4]} 25. Nbd4 {[%clk 0:02:12]} 25... Nc3 {[%clk 0:02:02.1]} 26. Rxc3
{[%clk 0:02:11.8]} 26... bxc3 {[%clk 0:02:01.9]} 27. Qd3 {[%clk 0:02:11.6]}
27... Rc8 {[%clk 0:01:56.9]} 28. Nf5 {[%clk 0:01:44.6]} 28... Qc7 {[%clk
0:01:36.3]} 29. Bb3 {[%clk 0:01:43.5]} 29... c2 {[%clk 0:01:35.9]} 30. Qe3
{[%clk 0:01:43]} 30... c1=Q {[%clk 0:01:32.4]} 0-1

[Event "*** Titled Tuesday Blitz"]
[Site "Chess.com"]
[Date "2020.10.20"]
[Round "10"]
[White "swimmerchess"]
[Black "RaunakSadhwani2005"]
[Result "1-0"]
[WhiteElo "2796"]
[BlackElo "2940"]
[TimeControl "180+1"]
[EndTime "11:55:12 PDT"]
[Termination "swimmerchess won by resignation"]

1. e4 {[%clk 0:03:00.9]} 1... e5 {[%clk 0:02:59.3]} 2. Nf3 {[%clk 0:03:01]} 2...
Nc6 {[%clk 0:02:58.6]} 3. Bb5 {[%clk 0:03:01.6]} 3... Nf6 {[%clk 0:02:58.9]} 4.
O-O {[%clk 0:03:01.3]} 4... Nxe4 {[%clk 0:02:59.2]} 5. Re1 {[%clk 0:03:01.9]}
5... Nd6 {[%clk 0:02:59.5]} 6. Nxe5 {[%clk 0:03:02.8]} 6... Nxe5 {[%clk
0:03:00.1]} 7. Bf1 {[%clk 0:03:03.7]} 7... Be7 {[%clk 0:03:01]} 8. Rxe5 {[%clk
0:03:03.9]} 8... O-O {[%clk 0:03:00.7]} 9. d4 {[%clk 0:03:04.4]} 9... Bf6 {[%clk
0:03:01.1]} 10. Bd3 {[%clk 0:03:03.2]} 10... Bxe5 {[%clk 0:02:57]} 11. dxe5
{[%clk 0:03:04.1]} 11... Ne8 {[%clk 0:02:56.9]} 12. Nc3 {[%clk 0:03:04.8]} 12...
d6 {[%clk 0:02:51.2]} 13. Qh5 {[%clk 0:03:04.3]} 13... g6 {[%clk 0:02:48.6]} 14.
Qh6 {[%clk 0:03:04.4]} 14... Qe7 {[%clk 0:02:40.7]} 15. exd6 {[%clk 0:03:04]}
15... Nxd6 {[%clk 0:02:21]} 16. Nd5 {[%clk 0:03:03.8]} 16... Qd8 {[%clk
0:01:52.5]} 17. Bg5 {[%clk 0:02:57.3]} 17... f6 {[%clk 0:01:25]} 18. Bxg6 {[%clk
0:02:56.9]} 18... Qd7 {[%clk 0:01:11.6]} 19. Bxf6 {[%clk 0:02:29.9]} 19... Nf5
{[%clk 0:00:11.5]} 20. Bxf5 {[%clk 0:02:29.6]} 1-0

[Event "*** Titled Tuesday Blitz"]
[Site "Chess.com"]
[Date "2020.10.20"]
[Round "10"]
[White "ZverevLev"]
[Black "teacher4chess"]
[Result "0-1"]
[WhiteElo "2241"]
[BlackElo "2071"]
[TimeControl "180+1"]
[EndTime "11:55:21 PDT"]
[Termination "teacher4chess won by checkmate"]

1. e4 {[%clk 0:02:59.1]} 1... d5 {[%clk 0:02:59.4]} 2. exd5 {[%clk 0:02:58.7]}
2... Qxd5 {[%clk 0:02:59.8]} 3. Nc3 {[%clk 0:02:59.6]} 3... Qd8 {[%clk
0:02:59.3]} 4. Bc4 {[%clk 0:02:57.7]} 4... Nf6 {[%clk 0:02:57.6]} 5. Nf3 {[%clk
0:02:55.8]} 5... a6 {[%clk 0:02:57.3]} 6. Ne5 {[%clk 0:02:55.2]} 6... e6 {[%clk
0:02:55.9]} 7. O-O {[%clk 0:02:51.2]} 7... b5 {[%clk 0:02:55.4]} 8. Qf3 {[%clk
0:02:49.7]} 8... Ra7 {[%clk 0:02:49.1]} 9. Bb3 {[%clk 0:02:48.5]} 9... c5 {[%clk
0:02:47.9]} 10. d3 {[%clk 0:02:47.2]} 10... Bd6 {[%clk 0:02:33.9]} 11. Ng4
{[%clk 0:02:42.7]} 11... Qc7 {[%clk 0:02:17.7]} 12. Nxf6+ {[%clk 0:02:39.6]}
12... gxf6 {[%clk 0:02:17.4]} 13. Qxf6 {[%clk 0:02:40.5]} 13... Bxh2+ {[%clk
0:02:16.9]} 14. Kh1 {[%clk 0:02:39.5]} 14... Be5 {[%clk 0:02:16.4]} 15. Qf3
{[%clk 0:02:39.2]} 15... Bb7 {[%clk 0:02:13.9]} 16. Qh5 {[%clk 0:02:37.4]} 16...
Nc6 {[%clk 0:02:06.2]} 17. Bxe6 {[%clk 0:02:35.6]} 17... Qe7 {[%clk 0:01:43.9]}
18. Bb3 {[%clk 0:02:33.6]} 18... Rg8 {[%clk 0:01:34.6]} 19. Nd5 {[%clk
0:02:29.5]} 19... Qd6 {[%clk 0:01:24.5]} 20. f4 {[%clk 0:02:06.1]} 20... Bd4
{[%clk 0:00:59.8]} 21. Re1+ {[%clk 0:02:04.1]} 21... Kd8 {[%clk 0:00:52.8]} 22.
Qxf7 {[%clk 0:02:00]} 22... Qh6+ {[%clk 0:00:52.1]} 23. Qh5 {[%clk 0:01:53.3]}
23... Qxh5# {[%clk 0:00:51.8]} 0-1

[Event "*** Titled Tuesday Blitz"]
[Site "Chess.com"]
[Date "2020.10.20"]
[Round "10"]
[White "WiktoriaPOL"]
[Black "davigator"]
[Result "0-1"]
[WhiteElo "2088"]
[BlackElo "2363"]
[TimeControl "180+1"]
[EndTime "11:55:22 PDT"]
[Termination "davigator won by resignation"]

1. c4 {[%clk 0:03:00.9]} 1... e5 {[%clk 0:02:54.6]} 2. Nc3 {[%clk 0:03:00.1]}
2... Bb4 {[%clk 0:02:53.1]} 3. Nd5 {[%clk 0:02:59.8]} 3... Bc5 {[%clk
0:02:52.6]} 4. Nf3 {[%clk 0:02:59.1]} 4... d6 {[%clk 0:02:52]} 5. d4 {[%clk
0:02:58.3]} 5... exd4 {[%clk 0:02:50.2]} 6. Nxd4 {[%clk 0:02:57.7]} 6... c6
{[%clk 0:02:50.4]} 7. Nc3 {[%clk 0:02:57.4]} 7... Bb4 {[%clk 0:02:50.4]} 8. g3
{[%clk 0:02:55.5]} 8... Nf6 {[%clk 0:02:50.3]} 9. Bg2 {[%clk 0:02:55.1]} 9...
O-O {[%clk 0:02:50.3]} 10. O-O {[%clk 0:02:55.1]} 10... Re8 {[%clk 0:02:49.7]}
11. a3 {[%clk 0:02:54.7]} 11... Bxc3 {[%clk 0:02:49]} 12. bxc3 {[%clk
0:02:55.6]} 12... Na6 {[%clk 0:02:48.4]} 13. Bg5 {[%clk 0:02:53.4]} 13... h6
{[%clk 0:02:47.5]} 14. Be3 {[%clk 0:02:50.5]} 14... Nc5 {[%clk 0:02:45.9]} 15.
Qc2 {[%clk 0:02:46.5]} 15... Qe7 {[%clk 0:02:40.2]} 16. Nf5 {[%clk 0:02:44.3]}
16... Qe5 {[%clk 0:02:37.7]} 17. Nd4 {[%clk 0:02:10.3]} 17... Nce4 {[%clk
0:02:33.7]} 18. f4 {[%clk 0:02:07.2]} 18... Qe7 {[%clk 0:02:32.3]} 19. Bf2
{[%clk 0:02:03.5]} 19... a6 {[%clk 0:02:27.9]} 20. Rad1 {[%clk 0:01:51.5]} 20...
c5 {[%clk 0:02:26.6]} 21. Nb3 {[%clk 0:01:49.6]} 21... Bf5 {[%clk 0:02:27]} 22.
Qb2 {[%clk 0:01:48]} 22... Rad8 {[%clk 0:02:14.8]} 23. h3 {[%clk 0:01:41.7]}
23... h5 {[%clk 0:02:14]} 24. Nd2 {[%clk 0:01:29.9]} 24... Rd7 {[%clk
0:01:57.3]} 25. Nxe4 {[%clk 0:01:28.4]} 25... Bxe4 {[%clk 0:01:56.6]} 26. Bxe4
{[%clk 0:01:26.8]} 26... Nxe4 {[%clk 0:01:56.6]} 27. Be1 {[%clk 0:01:26.2]}
27... Qe6 {[%clk 0:01:52.6]} 28. Kg2 {[%clk 0:01:24.4]} 28... Qxc4 {[%clk
0:01:52.1]} 29. g4 {[%clk 0:01:19.3]} 29... hxg4 {[%clk 0:01:48.3]} 30. hxg4
{[%clk 0:01:19]} 30... Nf6 {[%clk 0:01:47.8]} 31. g5 {[%clk 0:01:18]} 31...
Rxe2+ {[%clk 0:01:46.4]} 32. Rf2 {[%clk 0:01:16.7]} 32... Rxb2 {[%clk
0:01:45.4]} 0-1

[Event "*** Titled Tuesday Blitz"]
[Site "Chess.com"]
[Date "2020.10.20"]
[Round "10"]
[White "Gloomy_Wanderer"]
[Black "RobertoJBM"]
[Result "1-0"]
[WhiteElo "2713"]
[BlackElo "2677"]
[TimeControl "180+1"]
[EndTime "11:55:29 PDT"]
[Termination "Gloomy_Wanderer won by checkmate"]

1. d4 {[%clk 0:03:00.9]} 1... d5 {[%clk 0:02:59.3]} 2. c4 {[%clk 0:03:00.7]}
2... c6 {[%clk 0:02:58.8]} 3. cxd5 {[%clk 0:03:00.3]} 3... cxd5 {[%clk
0:02:58.5]} 4. Nc3 {[%clk 0:03:01.2]} 4... Nf6 {[%clk 0:02:58.1]} 5. Bg5 {[%clk
0:03:01.3]} 5... e6 {[%clk 0:02:54.5]} 6. e3 {[%clk 0:03:01.2]} 6... Nbd7 {[%clk
0:02:53.1]} 7. Bd3 {[%clk 0:03:01.1]} 7... a6 {[%clk 0:02:52.8]} 8. f4 {[%clk
0:03:00.9]} 8... b5 {[%clk 0:02:51.8]} 9. Nf3 {[%clk 0:03:01.1]} 9... Bb7 {[%clk
0:02:50.5]} 10. Ne5 {[%clk 0:03:01.3]} 10... Qb6 {[%clk 0:02:49.2]} 11. O-O
{[%clk 0:02:56.1]} 11... Bd6 {[%clk 0:02:42]} 12. Rc1 {[%clk 0:02:37.6]} 12...
Rc8 {[%clk 0:02:37]} 13. Qf3 {[%clk 0:02:34.6]} 13... g6 {[%clk 0:02:30]} 14.
Qh3 {[%clk 0:02:26.5]} 14... Ne4 {[%clk 0:02:19.5]} 15. Bxe4 {[%clk 0:02:00.4]}
15... dxe4 {[%clk 0:02:20.4]} 16. Nxg6 {[%clk 0:02:00.7]} 16... Rg8 {[%clk
0:02:02.3]} 17. f5 {[%clk 0:01:11.7]} 17... hxg6 {[%clk 0:01:52.2]} 18. fxe6
{[%clk 0:01:10.5]} 18... Bxh2+ {[%clk 0:01:52.2]} 19. Kxh2 {[%clk 0:01:03]}
19... Qxe6 {[%clk 0:01:53.1]} 20. Qxe6+ {[%clk 0:01:02.4]} 20... fxe6 {[%clk
0:01:53.2]} 21. Nxe4 {[%clk 0:00:58.4]} 21... Rxc1 {[%clk 0:01:30.4]} 22. Nd6#
{[%clk 0:00:55.9]} 1-0

[Event "*** Titled Tuesday Blitz"]
[Site "Chess.com"]
[Date "2020.10.20"]
[Round "10"]
[White "Flopezin"]
[Black "ajedrezhoy"]
[Result "1-0"]
[WhiteElo "2352"]
[BlackElo "2217"]
[TimeControl "180+1"]
[EndTime "11:55:30 PDT"]
[Termination "Flopezin won by resignation"]

1. c4 {[%clk 0:03:00.9]} 1... e6 {[%clk 0:02:59.1]} 2. Nf3 {[%clk 0:03:00.5]}
2... d5 {[%clk 0:02:58.9]} 3. e3 {[%clk 0:03:00]} 3... Nf6 {[%clk 0:02:57.4]} 4.
b3 {[%clk 0:02:59.7]} 4... c5 {[%clk 0:02:53.8]} 5. Bb2 {[%clk 0:02:59.2]} 5...
Be7 {[%clk 0:02:53.7]} 6. g3 {[%clk 0:02:59.3]} 6... O-O {[%clk 0:02:52.9]} 7.
Bg2 {[%clk 0:02:59.9]} 7... Nc6 {[%clk 0:02:52.4]} 8. O-O {[%clk 0:03:00]} 8...
d4 {[%clk 0:02:50]} 9. exd4 {[%clk 0:03:00.5]} 9... cxd4 {[%clk 0:02:49.6]} 10.
d3 {[%clk 0:03:01.2]} 10... e5 {[%clk 0:02:49.4]} 11. Re1 {[%clk 0:03:01.8]}
11... Nd7 {[%clk 0:02:48.6]} 12. Nbd2 {[%clk 0:02:51.7]} 12... a5 {[%clk
0:02:44.8]} 13. a3 {[%clk 0:02:41.8]} 13... f6 {[%clk 0:02:44.3]} 14. Bh1 {[%clk
0:02:21.2]} 14... Nc5 {[%clk 0:02:42.7]} 15. Ne4 {[%clk 0:02:20.9]} 15... Bf5
{[%clk 0:02:34.6]} 16. Nxc5 {[%clk 0:02:18.9]} 16... Bxc5 {[%clk 0:02:34.3]} 17.
Re2 {[%clk 0:02:14.3]} 17... Qb6 {[%clk 0:02:32.8]} 18. Ne1 {[%clk 0:02:08.8]}
18... Rfe8 {[%clk 0:02:25.9]} 19. Be4 {[%clk 0:02:08.2]} 19... Bxe4 {[%clk
0:02:24.5]} 20. Rxe4 {[%clk 0:02:07.9]} 20... Re7 {[%clk 0:02:12.4]} 21. Ng2
{[%clk 0:02:00.4]} 21... Rae8 {[%clk 0:02:11.8]} 22. Qc2 {[%clk 0:01:58.8]}
22... Nd8 {[%clk 0:02:06.5]} 23. Rae1 {[%clk 0:01:57.9]} 23... Qd6 {[%clk
0:02:03.9]} 24. Qc1 {[%clk 0:01:51.9]} 24... Nf7 {[%clk 0:02:03]} 25. f4 {[%clk
0:01:51.3]} 25... exf4 {[%clk 0:01:55]} 26. Rxe7 {[%clk 0:01:48.8]} 26... Rxe7
{[%clk 0:01:53.7]} 27. Nxf4 {[%clk 0:01:48.3]} 27... Ne5 {[%clk 0:01:49.1]} 28.
b4 {[%clk 0:01:44.1]} 28... Nf3+ {[%clk 0:01:47]} 29. Kf2 {[%clk 0:01:43.7]}
29... Rxe1 {[%clk 0:01:43.7]} 30. bxc5 {[%clk 0:01:41.7]} 30... Rd1 {[%clk
0:01:38.6]} 31. cxd6 {[%clk 0:01:30.6]} 31... Rxc1 {[%clk 0:01:39.5]} 32. d7
{[%clk 0:01:29.9]} 32... Rc2+ {[%clk 0:01:40]} 33. Kxf3 {[%clk 0:01:29.3]} 33...
Rxb2 {[%clk 0:01:35.9]} 34. d8=Q+ {[%clk 0:01:28.1]} 1-0

[Event "*** Titled Tuesday Blitz"]
[Site "Chess.com"]
[Date "2020.10.20"]
[Round "10"]
[White "GoltsevDmitry2000"]
[Black "dropstoneDP"]
[Result "0-1"]
[WhiteElo "2694"]
[BlackElo "2848"]
[TimeControl "180+1"]
[EndTime "11:55:48 PDT"]
[Termination "dropstoneDP won by resignation"]

1. e4 {[%clk 0:02:59.3]} 1... c6 {[%clk 0:02:58.8]} 2. d4 {[%clk 0:02:56.9]}
2... d5 {[%clk 0:02:59.3]} 3. exd5 {[%clk 0:02:56.6]} 3... cxd5 {[%clk
0:03:00.2]} 4. Nf3 {[%clk 0:02:57.4]} 4... Nf6 {[%clk 0:02:59.5]} 5. Be2 {[%clk
0:02:57.5]} 5... Bg4 {[%clk 0:02:58.8]} 6. O-O {[%clk 0:02:57.6]} 6... e6 {[%clk
0:02:59]} 7. Bf4 {[%clk 0:02:56.4]} 7... Bd6 {[%clk 0:02:59]} 8. Be5 {[%clk
0:02:55.1]} 8... Nc6 {[%clk 0:02:57.5]} 9. Re1 {[%clk 0:02:53.8]} 9... O-O
{[%clk 0:02:45.5]} 10. Bxd6 {[%clk 0:02:50.5]} 10... Qxd6 {[%clk 0:02:45.3]} 11.
c3 {[%clk 0:02:50.2]} 11... Ne4 {[%clk 0:02:43.5]} 12. Nbd2 {[%clk 0:02:49.2]}
12... f5 {[%clk 0:02:43.5]} 13. Nf1 {[%clk 0:02:44.2]} 13... Rf6 {[%clk
0:02:40.8]} 14. Ne3 {[%clk 0:02:28.2]} 14... Rh6 {[%clk 0:02:35.2]} 15. Nf1
{[%clk 0:02:21]} 15... Rf8 {[%clk 0:02:31.3]} 16. h3 {[%clk 0:02:17]} 16... Rff6
{[%clk 0:02:19.9]} 17. hxg4 {[%clk 0:01:54.8]} 17... fxg4 {[%clk 0:02:17.9]} 18.
N3h2 {[%clk 0:01:52.9]} 18... Nxf2 {[%clk 0:02:17.3]} 19. Qd2 {[%clk 0:01:51.8]}
19... g3 {[%clk 0:02:17.4]} 20. Bf3 {[%clk 0:01:20.8]} 20... gxh2+ {[%clk
0:02:05.1]} 21. Nxh2 {[%clk 0:01:15.5]} 21... Ne4 {[%clk 0:01:52.4]} 22. Qxh6
{[%clk 0:00:52.9]} 22... Rxh6 {[%clk 0:01:51.2]} 23. Ng4 {[%clk 0:00:53.8]}
23... Rh4 {[%clk 0:01:48.2]} 24. Re2 {[%clk 0:00:50.6]} 24... h5 {[%clk
0:01:38.4]} 25. Nf2 {[%clk 0:00:45.2]} 25... Qh2+ {[%clk 0:01:37.9]} 26. Kf1
{[%clk 0:00:45.6]} 26... Ng3+ {[%clk 0:01:38.5]} 0-1

[Event "*** Titled Tuesday Blitz"]
[Site "Chess.com"]
[Date "2020.10.20"]
[Round "10"]
[White "MIJuanReyesRosa"]
[Black "enriquebutti"]
[Result "1-0"]
[WhiteElo "2102"]
[BlackElo "1997"]
[TimeControl "180+1"]
[EndTime "11:56:06 PDT"]
[Termination "MIJuanReyesRosa won by resignation"]

1. d4 {[%clk 0:03:00.9]} 1... Nf6 {[%clk 0:02:54.1]} 2. Nf3 {[%clk 0:02:59.8]}
2... g6 {[%clk 0:02:48.9]} 3. c4 {[%clk 0:03:00]} 3... Bg7 {[%clk 0:02:47.9]} 4.
Nc3 {[%clk 0:03:00.6]} 4... O-O {[%clk 0:02:46.7]} 5. e4 {[%clk 0:03:01]} 5...
d6 {[%clk 0:02:46.4]} 6. Be2 {[%clk 0:03:01.3]} 6... e5 {[%clk 0:02:44.7]} 7.
dxe5 {[%clk 0:03:01.3]} 7... dxe5 {[%clk 0:02:44.4]} 8. Qxd8 {[%clk 0:03:02.2]}
8... Rxd8 {[%clk 0:02:43.8]} 9. Bg5 {[%clk 0:03:03.1]} 9... Re8 {[%clk
0:02:42.6]} 10. Nd5 {[%clk 0:02:50.5]} 10... Nxd5 {[%clk 0:02:39.4]} 11. cxd5
{[%clk 0:02:50.5]} 11... c6 {[%clk 0:02:39.1]} 12. O-O {[%clk 0:02:51]} 12...
cxd5 {[%clk 0:02:30.9]} 13. exd5 {[%clk 0:02:51]} 13... e4 {[%clk 0:02:30.6]}
14. Nd2 {[%clk 0:02:50.8]} 14... Bxb2 {[%clk 0:02:27.8]} 15. Rab1 {[%clk
0:02:51.2]} 15... Bg7 {[%clk 0:02:25.8]} 16. Nc4 {[%clk 0:02:51.5]} 16... Na6
{[%clk 0:02:13.9]} 17. Rfd1 {[%clk 0:02:12.6]} 17... Bf8 {[%clk 0:01:58.1]} 18.
Ne3 {[%clk 0:01:18.1]} 18... f5 {[%clk 0:01:35]} 19. Bb5 {[%clk 0:01:13.5]}
19... Re5 {[%clk 0:01:33.2]} 20. Bf4 {[%clk 0:01:09.4]} 20... Bd6 {[%clk
0:01:31.6]} 21. Bxe5 {[%clk 0:01:07.3]} 21... Bxe5 {[%clk 0:01:31.1]} 22. d6
{[%clk 0:00:57.5]} 22... Be6 {[%clk 0:01:29.6]} 23. Bc4 {[%clk 0:00:39.1]} 23...
Kf7 {[%clk 0:01:25.9]} 24. Rxb7+ {[%clk 0:00:33.9]} 1-0